[Event "Titled Tuesday Blitz April 25 Late 2023"]
[White "Bortnyk, Mykola"]
[Black "Sviridov, Valery"]
[WhiteFideId "14120836"]
[BlackFideId "4120680"]
[WhiteElo "2582"]
[BlackElo "2457"]
[Result "0-1"]
[Round "09"]
[TimeControl "180+2"]
[Date "2023.04.25"]
[WhiteClock "0:00:03"]
[BlackClock "0:00:29"]

1. e4 {[%clk 0:03:00]}  Nf6 {[%clk 0:02:51]} 2. e5 {[%clk 0:03:00]}  Nd5 {[%clk 0:02:51]} 3. d4 {[%clk 0:03:01]}  d6 {[%clk 0:02:52]} 4. c4 {[%clk 0:03:02]}  Nb6 {[%clk 0:02:52]} 5. f4 {[%clk 0:03:02]}  dxe5 {[%clk 0:02:51]} 6. fxe5 {[%clk 0:03:03]}  Nc6 {[%clk 0:02:51]} 7. Be3 {[%clk 0:03:03]}  Bf5 {[%clk 0:02:51]} 8. Nc3 {[%clk 0:03:03]}  e6 {[%clk 0:02:52]} 9. Nf3 {[%clk 0:03:04]}  Qd7 {[%clk 0:02:51]} 10. Be2 {[%clk 0:03:04]}  O-O-O {[%clk 0:02:51]} 11. O-O {[%clk 0:03:02]}  Bg4 {[%clk 0:02:51]} 12. c5 {[%clk 0:02:52]}  Nd5 {[%clk 0:02:51]} 13. Nxd5 {[%clk 0:02:52]}  Qxd5 {[%clk 0:02:52]} 14. h3 {[%clk 0:02:42]}  Bh5 {[%clk 0:02:49]} 15. Qa4 {[%clk 0:02:24]}  f6 {[%clk 0:02:39]} 16. Rad1 {[%clk 0:02:15]}  Be7 {[%clk 0:02:26]} 17. Bc4 {[%clk 0:02:12]}  Qd7 {[%clk 0:02:19]} 18. d5 {[%clk 0:02:07]}  exd5 {[%clk 0:02:16]} 19. Rxd5 {[%clk 0:02:00]}  Qxd5 {[%clk 0:02:15]} 20. Bxd5 {[%clk 0:02:01]}  Rxd5 {[%clk 0:02:16]} 21. Qe4 {[%clk 0:01:55]}  Rd7 {[%clk 0:02:08]} 22. e6 {[%clk 0:01:48]}  Rdd8 {[%clk 0:02:06]} 23. b4 {[%clk 0:01:48]}  Bg6 {[%clk 0:02:04]} 24. Qg4 {[%clk 0:01:46]}  a6 {[%clk 0:02:00]} 25. a4 {[%clk 0:01:46]}  Rd5 {[%clk 0:01:54]} 26. b5 {[%clk 0:01:44]}  Ne5 {[%clk 0:01:51]} 27. Nxe5 {[%clk 0:01:27]}  Rxe5 {[%clk 0:01:52]} 28. Bf2 {[%clk 0:01:27]}  a5 {[%clk 0:01:47]} 29. Qc4 {[%clk 0:01:19]}  Rd8 {[%clk 0:01:43]} 30. Qc3 {[%clk 0:01:17]}  Kb8 {[%clk 0:01:18]} 31. b6 {[%clk 0:01:14]}  cxb6 {[%clk 0:01:17]} 32. cxb6 {[%clk 0:01:15]}  Rc8 {[%clk 0:01:15]} 33. Qd2 {[%clk 0:01:11]}  Rd8 {[%clk 0:01:04]} 34. Qb2 {[%clk 0:01:10]}  Ka8 {[%clk 0:01:00]} 35. Rc1 {[%clk 0:01:09]}  Rxe6 {[%clk 0:00:59]} 36. Qb5 {[%clk 0:01:04]}  Bb4 {[%clk 0:00:59]} 37. Bg3 {[%clk 0:00:53]}  Be4 {[%clk 0:00:58]} 38. Bc7 {[%clk 0:00:48]}  Rde8 {[%clk 0:00:57]} 39. Qh5 {[%clk 0:00:39]}  Bc6 {[%clk 0:00:53]} 40. Qf7 {[%clk 0:00:30]}  R6e7 {[%clk 0:00:52]} 41. Qh5 {[%clk 0:00:28]}  Re2 {[%clk 0:00:52]} 42. Rxc6 {[%clk 0:00:28]}  bxc6 {[%clk 0:00:52]} 43. Qxh7 {[%clk 0:00:23]}  R2e7 {[%clk 0:00:51]} 44. Qg6 {[%clk 0:00:16]}  Kb7 {[%clk 0:00:52]} 45. h4 {[%clk 0:00:17]}  Bc5+ {[%clk 0:00:52]} 46. Kh2 {[%clk 0:00:17]}  Ra8 {[%clk 0:00:46]} 47. h5 {[%clk 0:00:15]}  Bxb6 {[%clk 0:00:46]} 48. Bd6 {[%clk 0:00:16]}  Rd7 {[%clk 0:00:45]} 49. Bg3 {[%clk 0:00:16]}  Bc7 {[%clk 0:00:44]} 50. Qb1+ {[%clk 0:00:15]}  Kc8 {[%clk 0:00:44]} 51. Qc2 {[%clk 0:00:13]}  Bxg3+ {[%clk 0:00:43]} 52. Kxg3 {[%clk 0:00:13]}  Kc7 {[%clk 0:00:44]} 53. Kh4 {[%clk 0:00:14]}  Rb8 {[%clk 0:00:44]} 54. g4 {[%clk 0:00:13]}  Rb4 {[%clk 0:00:44]} 55. Qh2+ {[%clk 0:00:12]}  Kb7 {[%clk 0:00:44]} 56. Qe2 {[%clk 0:00:10]}  f5 {[%clk 0:00:41]} 57. Kg5 {[%clk 0:00:08]}  fxg4 {[%clk 0:00:40]} 58. Qe6 {[%clk 0:00:08]}  Rc7 {[%clk 0:00:39]} 59. Qd6 {[%clk 0:00:04]}  Rxa4 {[%clk 0:00:38]} 60. Qg3 {[%clk 0:00:04]}  Rb4 {[%clk 0:00:38]} 61. Kg6 {[%clk 0:00:05]}  Kb6 {[%clk 0:00:37]} 62. Qe3+ {[%clk 0:00:04]}  c5 {[%clk 0:00:37]} 63. Qc3 {[%clk 0:00:04]}  a4 {[%clk 0:00:37]} 64. Kh7 {[%clk 0:00:04]}  Ra7 {[%clk 0:00:34]} 65. Qe5 {[%clk 0:00:04]}  a3 {[%clk 0:00:34]} 66. Qd6+ {[%clk 0:00:05]}  Kb5 {[%clk 0:00:34]} 67. Qd3+ {[%clk 0:00:05]}  Ka5 {[%clk 0:00:30]} 68. Qc3 {[%clk 0:00:04]}  Kb6 {[%clk 0:00:28]} 69. Qa1 {[%clk 0:00:01]}  a2 {[%clk 0:00:28]} 70. h6 {[%clk 0:00:01]}  gxh6+ {[%clk 0:00:28]} 71. Kxh6 {[%clk 0:00:02]}  Rb1 {[%clk 0:00:28]} 72. Qf6+ {[%clk 0:00:03]}  Kb5 {[%clk 0:00:29]} 73. Qe5 {[%clk 0:00:02]}  a1=Q {[%clk 0:00:29]} 74. Qe8+ {[%clk 0:00:03]}  Kb4 {[%clk 0:00:29]} 75. Qe4+ {[%clk 0:00:03]}  c4 {[%clk 0:00:29]} 0-1


[Site "https://www.chess.com"]

[Event "Titled Tuesday Blitz April 25 Late 2023"]
[White "Weetik, Vjacheslav"]
[Black "Svane, Rasmus"]
[WhiteFideId "4153472"]
[BlackFideId "4657101"]
[WhiteElo "2469"]
[BlackElo "2597"]
[Result "0-1"]
[Round "09"]
[TimeControl "180+2"]
[Date "2023.04.25"]
[WhiteClock "0:00:04"]
[BlackClock "0:00:09"]

1. d4 {[%clk 0:02:59]}  Nf6 {[%clk 0:02:59]} 2. Bf4 {[%clk 0:02:59]}  d5 {[%clk 0:03:00]} 3. e3 {[%clk 0:02:59]}  c5 {[%clk 0:03:00]} 4. c3 {[%clk 0:02:59]}  Nc6 {[%clk 0:03:00]} 5. Nd2 {[%clk 0:03:00]}  Bf5 {[%clk 0:03:01]} 6. Ngf3 {[%clk 0:03:00]}  e6 {[%clk 0:03:01]} 7. Nh4 {[%clk 0:03:00]}  Be4 {[%clk 0:02:49]} 8. Qb3 {[%clk 0:02:59]}  Qd7 {[%clk 0:02:33]} 9. f3 {[%clk 0:02:38]}  Bg6 {[%clk 0:02:32]} 10. Nxg6 {[%clk 0:02:35]}  hxg6 {[%clk 0:02:33]} 11. g4 {[%clk 0:02:35]}  cxd4 {[%clk 0:01:51]} 12. exd4 {[%clk 0:02:30]}  Bd6 {[%clk 0:01:51]} 13. Bxd6 {[%clk 0:02:16]}  Qxd6 {[%clk 0:01:52]} 14. O-O-O {[%clk 0:02:14]}  O-O-O {[%clk 0:01:48]} 15. Bb5 {[%clk 0:02:03]}  Rh3 {[%clk 0:01:32]} 16. Qa4 {[%clk 0:01:53]}  a6 {[%clk 0:01:31]} 17. Bf1 {[%clk 0:01:50]}  Rh4 {[%clk 0:01:29]} 18. Nb3 {[%clk 0:01:37]}  Nd7 {[%clk 0:01:28]} 19. Nd2 {[%clk 0:01:11]}  Nb6 {[%clk 0:01:28]} 20. Qb3 {[%clk 0:01:10]}  Na5 {[%clk 0:01:28]} 21. Qc2 {[%clk 0:01:09]}  Rxh2 {[%clk 0:01:28]} 22. Rxh2 {[%clk 0:01:09]}  Qxh2 {[%clk 0:01:28]} 23. Bd3 {[%clk 0:00:59]}  Rh8 {[%clk 0:01:27]} 24. b4 {[%clk 0:00:40]}  Nac4 {[%clk 0:01:12]} 25. Bxc4 {[%clk 0:00:32]}  Nxc4 {[%clk 0:00:53]} 26. Qd3 {[%clk 0:00:20]}  Qf4 {[%clk 0:00:45]} 27. Kb1 {[%clk 0:00:20]}  Qe3 {[%clk 0:00:36]} 28. Qxe3 {[%clk 0:00:14]}  Nxe3 {[%clk 0:00:37]} 29. Re1 {[%clk 0:00:14]}  Ng2 {[%clk 0:00:25]} 30. Rc1 {[%clk 0:00:10]}  b5 {[%clk 0:00:25]} 31. Nb3 {[%clk 0:00:10]}  Rh3 {[%clk 0:00:25]} 32. Nc5 {[%clk 0:00:08]}  Rxf3 {[%clk 0:00:24]} 33. Nxa6 {[%clk 0:00:08]}  f5 {[%clk 0:00:24]} 34. g5 {[%clk 0:00:05]}  f4 {[%clk 0:00:18]} 35. Rh1 {[%clk 0:00:04]}  Re3 {[%clk 0:00:16]} 36. Rh8+ {[%clk 0:00:01]}  Kd7 {[%clk 0:00:16]} 37. Nc5+ {[%clk 0:00:02]}  Ke7 {[%clk 0:00:16]} 38. Rh7 {[%clk 0:00:02]}  f3 {[%clk 0:00:15]} 39. Rxg7+ {[%clk 0:00:02]}  Kf8 {[%clk 0:00:15]} 40. Rxg6 {[%clk 0:00:03]}  Ke7 {[%clk 0:00:10]} 41. Rf6 {[%clk 0:00:03]}  Nh4 {[%clk 0:00:09]} 42. a4 {[%clk 0:00:04]}  Nf5 {[%clk 0:00:09]} 0-1


[Site "https://www.chess.com"]

[Event "Titled Tuesday Blitz April 25 Late 2023"]
[White "Grigoriants, Sergey"]
[Black "Pakleza, Zbigniew"]
[WhiteFideId "4130804"]
[BlackFideId "1119290"]
[WhiteElo "2502"]
[BlackElo "2410"]
[Result "1-0"]
[Round "09"]
[TimeControl "180+2"]
[Date "2023.04.25"]
[WhiteClock "0:00:08"]
[BlackClock "0:00:01"]

1. d4 {[%clk 0:02:56]}  d6 {[%clk 0:02:57]} 2. e4 {[%clk 0:02:55]}  Nf6 {[%clk 0:02:57]} 3. Nc3 {[%clk 0:02:55]}  c6 {[%clk 0:02:58]} 4. Nf3 {[%clk 0:02:50]}  Bg4 {[%clk 0:02:57]} 5. h3 {[%clk 0:02:46]}  Bh5 {[%clk 0:02:58]} 6. g4 {[%clk 0:02:39]}  Bg6 {[%clk 0:02:58]} 7. Bd3 {[%clk 0:02:39]}  e6 {[%clk 0:02:58]} 8. Qe2 {[%clk 0:02:35]}  d5 {[%clk 0:02:56]} 9. Bd2 {[%clk 0:02:22]}  Be7 {[%clk 0:02:43]} 10. O-O-O {[%clk 0:02:18]}  dxe4 {[%clk 0:02:35]} 11. Nxe4 {[%clk 0:02:17]}  Nbd7 {[%clk 0:02:35]} 12. Kb1 {[%clk 0:02:06]}  Nxe4 {[%clk 0:02:28]} 13. Bxe4 {[%clk 0:02:07]}  Bxe4 {[%clk 0:02:29]} 14. Qxe4 {[%clk 0:02:07]}  Nf6 {[%clk 0:02:30]} 15. Qe2 {[%clk 0:02:07]}  Qd5 {[%clk 0:02:16]} 16. Rhe1 {[%clk 0:02:06]}  b5 {[%clk 0:02:12]} 17. Ne5 {[%clk 0:01:53]}  O-O {[%clk 0:01:56]} 18. f4 {[%clk 0:01:53]}  Rfe8 {[%clk 0:01:50]} 19. h4 {[%clk 0:01:42]}  Nd7 {[%clk 0:01:38]} 20. Nf3 {[%clk 0:01:32]}  a5 {[%clk 0:01:12]} 21. h5 {[%clk 0:01:32]}  a4 {[%clk 0:01:08]} 22. g5 {[%clk 0:01:24]}  Nf8 {[%clk 0:00:53]} 23. Bc1 {[%clk 0:01:12]}  b4 {[%clk 0:00:51]} 24. Ne5 {[%clk 0:01:01]}  Rec8 {[%clk 0:00:37]} 25. Qd3 {[%clk 0:00:48]}  b3 {[%clk 0:00:28]} 26. c4 {[%clk 0:00:45]}  bxa2+ {[%clk 0:00:26]} 27. Ka1 {[%clk 0:00:45]}  Qa5 {[%clk 0:00:17]} 28. f5 {[%clk 0:00:41]}  a3 {[%clk 0:00:14]} 29. b3 {[%clk 0:00:38]}  Bb4 {[%clk 0:00:07]} 30. Rf1 {[%clk 0:00:33]}  Ra7 {[%clk 0:00:07]} 31. Kxa2 {[%clk 0:00:23]}  Bd6 {[%clk 0:00:05]} 32. g6 {[%clk 0:00:19]}  Bxe5 {[%clk 0:00:05]} 33. dxe5 {[%clk 0:00:18]}  hxg6 {[%clk 0:00:02]} 34. hxg6 {[%clk 0:00:18]}  Qxe5 {[%clk 0:00:02]} 35. Rde1 {[%clk 0:00:10]}  Qc7 {[%clk 0:00:01]} 36. Qh3 {[%clk 0:00:08]} 1-0


[Site "https://www.chess.com"]

[Event "Titled Tuesday Blitz April 25 Late 2023"]
[White "Ismagilov, Damir"]
[Black "Donchenko, Alexander"]
[WhiteFideId "34199982"]
[BlackFideId "24603295"]
[WhiteElo "2078"]
[BlackElo "2542"]
[Result "0-1"]
[Round "09"]
[TimeControl "180+2"]
[Date "2023.04.25"]
[WhiteClock "0:00:01"]
[BlackClock "0:01:21"]

1. d4 {[%clk 0:03:00]}  Nf6 {[%clk 0:02:59]} 2. Nf3 {[%clk 0:03:00]}  d5 {[%clk 0:02:59]} 3. Bg5 {[%clk 0:02:59]}  Ne4 {[%clk 0:02:58]} 4. Bf4 {[%clk 0:03:00]}  c5 {[%clk 0:02:59]} 5. e3 {[%clk 0:03:00]}  Nc6 {[%clk 0:02:59]} 6. Nbd2 {[%clk 0:02:59]}  Nxd2 {[%clk 0:02:56]} 7. Qxd2 {[%clk 0:02:59]}  Bg4 {[%clk 0:02:54]} 8. Ne5 {[%clk 0:02:54]}  Nxe5 {[%clk 0:02:54]} 9. Bxe5 {[%clk 0:02:54]}  f6 {[%clk 0:02:50]} 10. Bg3 {[%clk 0:02:52]}  e6 {[%clk 0:02:48]} 11. f3 {[%clk 0:02:21]}  Bf5 {[%clk 0:02:45]} 12. Bd3 {[%clk 0:02:14]}  Bxd3 {[%clk 0:02:45]} 13. Qxd3 {[%clk 0:02:15]}  Qb6 {[%clk 0:02:45]} 14. O-O {[%clk 0:02:08]}  Be7 {[%clk 0:02:42]} 15. c4 {[%clk 0:01:52]}  dxc4 {[%clk 0:02:39]} 16. Qxc4 {[%clk 0:01:52]}  cxd4 {[%clk 0:02:39]} 17. exd4 {[%clk 0:01:51]}  Kf7 {[%clk 0:02:39]} 18. Bf2 {[%clk 0:01:33]}  Rac8 {[%clk 0:02:39]} 19. Qa4 {[%clk 0:01:30]}  Qc6 {[%clk 0:02:35]} 20. Qb3 {[%clk 0:01:18]}  Qd5 {[%clk 0:02:33]} 21. Qxd5 {[%clk 0:01:13]}  exd5 {[%clk 0:02:34]} 22. Rfc1 {[%clk 0:01:13]}  h5 {[%clk 0:02:28]} 23. Kf1 {[%clk 0:01:12]}  Ke6 {[%clk 0:02:20]} 24. Ke2 {[%clk 0:01:11]}  Rc4 {[%clk 0:02:16]} 25. b3 {[%clk 0:01:06]}  Rc6 {[%clk 0:02:14]} 26. Rxc6+ {[%clk 0:01:06]}  bxc6 {[%clk 0:02:15]} 27. Kd3 {[%clk 0:01:05]}  g5 {[%clk 0:02:12]} 28. h3 {[%clk 0:01:02]}  Bd6 {[%clk 0:02:11]} 29. Rc1 {[%clk 0:01:01]}  Kd7 {[%clk 0:02:10]} 30. Rh1 {[%clk 0:00:39]}  Rg8 {[%clk 0:02:08]} 31. g4 {[%clk 0:00:38]}  h4 {[%clk 0:02:05]} 32. Re1 {[%clk 0:00:36]}  Rf8 {[%clk 0:02:03]} 33. Be3 {[%clk 0:00:36]}  a5 {[%clk 0:01:56]} 34. Bd2 {[%clk 0:00:35]}  a4 {[%clk 0:01:56]} 35. bxa4 {[%clk 0:00:35]}  Ra8 {[%clk 0:01:56]} 36. a5 {[%clk 0:00:35]}  Bc7 {[%clk 0:01:56]} 37. Rc1 {[%clk 0:00:14]}  Bxa5 {[%clk 0:01:55]} 38. Bxa5 {[%clk 0:00:14]}  Rxa5 {[%clk 0:01:56]} 39. Rc2 {[%clk 0:00:15]}  Ra3+ {[%clk 0:01:56]} 40. Ke2 {[%clk 0:00:16]}  Kd6 {[%clk 0:01:52]} 41. Rb2 {[%clk 0:00:15]}  Kc7 {[%clk 0:01:50]} 42. Rc2 {[%clk 0:00:15]}  Ra4 {[%clk 0:01:46]} 43. Ke3 {[%clk 0:00:14]}  Rb4 {[%clk 0:01:46]} 44. Kd3 {[%clk 0:00:14]}  Rb1 {[%clk 0:01:46]} 45. Rh2 {[%clk 0:00:10]}  Rd1+ {[%clk 0:01:42]} 46. Ke3 {[%clk 0:00:10]}  Kd6 {[%clk 0:01:41]} 47. f4 {[%clk 0:00:02]}  gxf4+ {[%clk 0:01:41]} 48. Kxf4 {[%clk 0:00:03]}  Rxd4+ {[%clk 0:01:41]} 49. Kf5 {[%clk 0:00:03]}  Ke7 {[%clk 0:01:38]} 50. Rc2 {[%clk 0:00:03]}  Kd6 {[%clk 0:01:32]} 51. Kxf6 {[%clk 0:00:03]}  Rd3 {[%clk 0:01:33]} 52. g5 {[%clk 0:00:01]}  Rf3+ {[%clk 0:01:32]} 53. Kg6 {[%clk 0:00:01]}  Rxh3 {[%clk 0:01:32]} 54. Kh5 {[%clk 0:00:02]}  d4 {[%clk 0:01:30]} 55. g6 {[%clk 0:00:01]}  Rg3 {[%clk 0:01:30]} 56. a4 {[%clk 0:00:02]}  d3 {[%clk 0:01:27]} 57. Ra2 {[%clk 0:00:02]}  h3 {[%clk 0:01:25]} 58. a5 {[%clk 0:00:02]}  Rg2 {[%clk 0:01:26]} 59. Ra1 {[%clk 0:00:02]}  h2 {[%clk 0:01:25]} 60. g7 {[%clk 0:00:01]}  Rxg7 {[%clk 0:01:25]} 61. Rh1 {[%clk 0:00:01]}  Rg2 {[%clk 0:01:22]} 62. a6 {[%clk 0:00:01]}  Kc7 {[%clk 0:01:22]} 63. a7 {[%clk 0:00:01]}  Kb7 {[%clk 0:01:22]} 64. Ra1 {[%clk 0:00:01]}  Ka8 {[%clk 0:01:22]} 65. Rb1 {[%clk 0:00:01]}  Rg1 {[%clk 0:01:21]} 0-1


[Site "https://www.chess.com"]

[Event "Titled Tuesday Blitz April 25 Late 2023"]
[White "Andreikin, Dmitry"]
[Black "Oro, Faustino"]
[WhiteFideId "4158814"]
[BlackFideId "20000197"]
[WhiteElo "2736"]
[BlackElo "1984"]
[Result "1-0"]
[Round "09"]
[TimeControl "180+2"]
[Date "2023.04.25"]
[WhiteClock "0:01:09"]
[BlackClock "0:00:08"]

1. e4 {[%clk 0:03:00]}  e5 {[%clk 0:02:58]} 2. f4 {[%clk 0:02:59]}  d5 {[%clk 0:02:56]} 3. exd5 {[%clk 0:02:58]}  exf4 {[%clk 0:02:56]} 4. Nf3 {[%clk 0:02:56]}  Nf6 {[%clk 0:02:56]} 5. Bc4 {[%clk 0:02:55]}  Nxd5 {[%clk 0:02:50]} 6. O-O {[%clk 0:02:55]}  Be7 {[%clk 0:02:49]} 7. d4 {[%clk 0:02:55]}  O-O {[%clk 0:02:49]} 8. Bxd5 {[%clk 0:02:55]}  Qxd5 {[%clk 0:02:49]} 9. Bxf4 {[%clk 0:02:55]}  Qd8 {[%clk 0:02:32]} 10. Nc3 {[%clk 0:02:47]}  Bg4 {[%clk 0:02:30]} 11. Qd3 {[%clk 0:02:41]}  Nc6 {[%clk 0:02:16]} 12. Ne5 {[%clk 0:02:28]}  Nxe5 {[%clk 0:01:57]} 13. Bxe5 {[%clk 0:02:29]}  f6 {[%clk 0:01:56]} 14. Bf4 {[%clk 0:02:08]}  Kh8 {[%clk 0:01:50]} 15. Rae1 {[%clk 0:02:04]}  c6 {[%clk 0:01:34]} 16. Kh1 {[%clk 0:01:56]}  Qd7 {[%clk 0:01:32]} 17. d5 {[%clk 0:01:51]}  cxd5 {[%clk 0:01:19]} 18. Nxd5 {[%clk 0:01:33]}  Bc5 {[%clk 0:01:10]} 19. b4 {[%clk 0:01:28]}  Bb6 {[%clk 0:00:43]} 20. Re7 {[%clk 0:01:19]}  Qc6 {[%clk 0:00:41]} 21. Bh6 {[%clk 0:01:11]}  Rg8 {[%clk 0:00:08]} 22. Nxf6 {[%clk 0:01:09]} 1-0


[Site "https://www.chess.com"]

[Event "Titled Tuesday Blitz April 25 Late 2023"]
[White "Banzea, Alexandru-Bogdan"]
[Black "Indjic, Aleksandar"]
[WhiteFideId "1232622"]
[BlackFideId "911925"]
[WhiteElo "2294"]
[BlackElo "2614"]
[Result "0-1"]
[Round "09"]
[TimeControl "180+2"]
[Date "2023.04.25"]
[WhiteClock "0:00:01"]
[BlackClock "0:00:50"]

1. d4 {[%clk 0:03:00]}  d5 {[%clk 0:02:57]} 2. Nf3 {[%clk 0:03:01]}  Nf6 {[%clk 0:02:54]} 3. Bf4 {[%clk 0:03:01]}  c5 {[%clk 0:02:52]} 4. e3 {[%clk 0:03:02]}  Nc6 {[%clk 0:02:52]} 5. Nbd2 {[%clk 0:03:02]}  cxd4 {[%clk 0:02:47]} 6. exd4 {[%clk 0:03:03]}  Bf5 {[%clk 0:02:46]} 7. c3 {[%clk 0:03:01]}  e6 {[%clk 0:02:43]} 8. Qb3 {[%clk 0:02:59]}  Qc8 {[%clk 0:02:43]} 9. Nh4 {[%clk 0:02:42]}  Bg4 {[%clk 0:02:38]} 10. h3 {[%clk 0:02:43]}  Bh5 {[%clk 0:02:38]} 11. g4 {[%clk 0:02:43]}  Bg6 {[%clk 0:02:39]} 12. Nxg6 {[%clk 0:02:44]}  hxg6 {[%clk 0:02:38]} 13. Be2 {[%clk 0:02:45]}  Be7 {[%clk 0:02:35]} 14. Kf1 {[%clk 0:02:41]}  Qd7 {[%clk 0:02:33]} 15. Kg2 {[%clk 0:02:40]}  Bd6 {[%clk 0:02:33]} 16. Be3 {[%clk 0:02:21]}  Qc7 {[%clk 0:02:23]} 17. Rae1 {[%clk 0:01:47]}  O-O {[%clk 0:02:21]} 18. Qd1 {[%clk 0:01:16]}  Bf4 {[%clk 0:02:20]} 19. Bf3 {[%clk 0:01:11]}  b5 {[%clk 0:02:17]} 20. Nb3 {[%clk 0:01:07]}  b4 {[%clk 0:02:16]} 21. Qd2 {[%clk 0:00:40]}  Bxe3 {[%clk 0:02:14]} 22. Rxe3 {[%clk 0:00:31]}  Qd6 {[%clk 0:02:11]} 23. Rhe1 {[%clk 0:00:24]}  Nd7 {[%clk 0:02:07]} 24. Nc1 {[%clk 0:00:20]}  bxc3 {[%clk 0:02:05]} 25. bxc3 {[%clk 0:00:21]}  Nb6 {[%clk 0:01:59]} 26. Be2 {[%clk 0:00:20]}  Na5 {[%clk 0:01:57]} 27. Rg3 {[%clk 0:00:16]}  Nac4 {[%clk 0:01:56]} 28. Bxc4 {[%clk 0:00:17]}  Nxc4 {[%clk 0:01:55]} 29. Qg5 {[%clk 0:00:17]}  Qd8 {[%clk 0:01:53]} 30. Qf4 {[%clk 0:00:14]}  Qf6 {[%clk 0:01:48]} 31. Qf3 {[%clk 0:00:09]}  Rfc8 {[%clk 0:01:39]} 32. Nb3 {[%clk 0:00:06]}  Rab8 {[%clk 0:01:37]} 33. Re2 {[%clk 0:00:05]}  a5 {[%clk 0:01:35]} 34. Nc5 {[%clk 0:00:06]}  Qxf3+ {[%clk 0:01:34]} 35. Rxf3 {[%clk 0:00:06]}  Rb6 {[%clk 0:01:34]} 36. g5 {[%clk 0:00:06]}  Nd6 {[%clk 0:01:31]} 37. Rf4 {[%clk 0:00:03]}  Nf5 {[%clk 0:01:30]} 38. Kf3 {[%clk 0:00:03]}  Rb5 {[%clk 0:01:29]} 39. Kg4 {[%clk 0:00:04]}  Rcb8 {[%clk 0:01:28]} 40. h4 {[%clk 0:00:04]}  Rb2 {[%clk 0:01:28]} 41. Rxb2 {[%clk 0:00:03]}  Rxb2 {[%clk 0:01:29]} 42. h5 {[%clk 0:00:03]}  gxh5+ {[%clk 0:01:28]} 43. Kxh5 {[%clk 0:00:04]}  g6+ {[%clk 0:01:25]} 44. Kg4 {[%clk 0:00:05]}  Rxa2 {[%clk 0:01:24]} 45. Rf3 {[%clk 0:00:05]}  Kf8 {[%clk 0:01:03]} 46. Rh3 {[%clk 0:00:05]}  Ke7 {[%clk 0:00:59]} 47. Rh8 {[%clk 0:00:04]}  Rxf2 {[%clk 0:00:57]} 48. Ra8 {[%clk 0:00:03]}  Nd6 {[%clk 0:00:49]} 49. Ra7+ {[%clk 0:00:04]}  Kf8 {[%clk 0:00:49]} 50. Nd7+ {[%clk 0:00:05]}  Kg7 {[%clk 0:00:50]} 51. Nf6 {[%clk 0:00:04]}  Ne4 {[%clk 0:00:49]} 52. Ne8+ {[%clk 0:00:02]}  Kf8 {[%clk 0:00:49]} 53. Ra8 {[%clk 0:00:03]}  Ke7 {[%clk 0:00:49]} 54. Nc7 {[%clk 0:00:03]}  Rg2+ {[%clk 0:00:49]} 55. Kf4 {[%clk 0:00:02]}  Rxg5 {[%clk 0:00:49]} 56. Ra7 {[%clk 0:00:02]}  Rf5+ {[%clk 0:00:49]} 57. Ke3 {[%clk 0:00:02]}  Kf8 {[%clk 0:00:49]} 58. Ra8+ {[%clk 0:00:02]}  Kg7 {[%clk 0:00:49]} 59. Ne8+ {[%clk 0:00:02]}  Kh6 {[%clk 0:00:50]} 60. Nc7 {[%clk 0:00:01]}  g5 {[%clk 0:00:50]} 61. Rxa5 {[%clk 0:00:02]}  g4 {[%clk 0:00:50]} 62. Ra8 {[%clk 0:00:02]}  Rf3+ {[%clk 0:00:50]} 63. Ke2 {[%clk 0:00:02]}  Nxc3+ {[%clk 0:00:50]} 64. Kd2 {[%clk 0:00:01]}  Ne4+ {[%clk 0:00:50]} 0-1


[Site "https://www.chess.com"]

[Event "Titled Tuesday Blitz April 25 Late 2023"]
[White "Bartel, Mateusz"]
[Black "Bruedigam, Martin"]
[WhiteFideId "1112635"]
[BlackFideId "24608033"]
[WhiteElo "2521"]
[BlackElo "2331"]
[Result "1-0"]
[Round "09"]
[TimeControl "180+2"]
[Date "2023.04.25"]
[WhiteClock "0:00:09"]
[BlackClock "0:00:07"]

1. f4 {[%clk 0:03:00]}  d5 {[%clk 0:02:44]} 2. Nf3 {[%clk 0:03:00]}  Bg4 {[%clk 0:02:41]} 3. Ne5 {[%clk 0:02:54]}  Bf5 {[%clk 0:02:36]} 4. e3 {[%clk 0:02:38]}  Nd7 {[%clk 0:02:30]} 5. Be2 {[%clk 0:02:28]}  Nxe5 {[%clk 0:02:15]} 6. fxe5 {[%clk 0:02:27]}  e6 {[%clk 0:02:15]} 7. O-O {[%clk 0:02:27]}  Ne7 {[%clk 0:02:12]} 8. d4 {[%clk 0:02:18]}  Bg6 {[%clk 0:02:05]} 9. Nd2 {[%clk 0:02:16]}  Nf5 {[%clk 0:02:02]} 10. Nf3 {[%clk 0:02:11]}  Nh4 {[%clk 0:02:01]} 11. c4 {[%clk 0:02:07]}  Nxf3+ {[%clk 0:02:01]} 12. gxf3 {[%clk 0:02:07]}  c6 {[%clk 0:02:01]} 13. Qb3 {[%clk 0:02:03]}  Qb6 {[%clk 0:02:00]} 14. Bd2 {[%clk 0:01:46]}  Be7 {[%clk 0:01:59]} 15. Qc3 {[%clk 0:01:39]}  dxc4 {[%clk 0:01:45]} 16. Bxc4 {[%clk 0:01:38]}  Rd8 {[%clk 0:01:37]} 17. b4 {[%clk 0:01:33]}  Qc7 {[%clk 0:01:28]} 18. Rf2 {[%clk 0:01:26]}  a6 {[%clk 0:01:16]} 19. a3 {[%clk 0:01:21]}  Bg5 {[%clk 0:01:07]} 20. Kh1 {[%clk 0:01:15]}  Qe7 {[%clk 0:00:54]} 21. Rg1 {[%clk 0:01:13]}  Bh6 {[%clk 0:00:46]} 22. Rfg2 {[%clk 0:01:05]}  Rd7 {[%clk 0:00:43]} 23. Be1 {[%clk 0:00:46]}  Rd8 {[%clk 0:00:39]} 24. Bf2 {[%clk 0:00:45]}  Ra8 {[%clk 0:00:36]} 25. Be2 {[%clk 0:00:43]}  a5 {[%clk 0:00:29]} 26. b5 {[%clk 0:00:42]}  O-O {[%clk 0:00:29]} 27. b6 {[%clk 0:00:32]}  a4 {[%clk 0:00:27]} 28. e4 {[%clk 0:00:21]}  Qd8 {[%clk 0:00:16]} 29. Qc5 {[%clk 0:00:19]}  Bf4 {[%clk 0:00:14]} 30. Rg4 {[%clk 0:00:18]}  Bd2 {[%clk 0:00:14]} 31. Bd3 {[%clk 0:00:15]}  Ba5 {[%clk 0:00:14]} 32. Rb1 {[%clk 0:00:15]}  Bh5 {[%clk 0:00:10]} 33. Rg3 {[%clk 0:00:15]}  Bd2 {[%clk 0:00:10]} 34. Be2 {[%clk 0:00:13]}  Bf4 {[%clk 0:00:11]} 35. Rg2 {[%clk 0:00:14]}  Bg5 {[%clk 0:00:10]} 36. Rbg1 {[%clk 0:00:13]}  Be7 {[%clk 0:00:11]} 37. Rxg7+ {[%clk 0:00:12]}  Kh8 {[%clk 0:00:11]} 38. Qc1 {[%clk 0:00:12]}  Bg6 {[%clk 0:00:12]} 39. Qh6 {[%clk 0:00:10]}  Rg8 {[%clk 0:00:07]} 40. R1xg6 {[%clk 0:00:09]} 1-0


[Site "https://www.chess.com"]

[Event "Titled Tuesday Blitz April 25 Late 2023"]
[White "Schnaider, Ilan"]
[Black "Baskakov, Egor"]
[WhiteFideId "169013"]
[BlackFideId "24197866"]
[WhiteElo "2224"]
[BlackElo "2212"]
[Result "1-0"]
[Round "09"]
[TimeControl "180+2"]
[Date "2023.04.25"]
[WhiteClock "0:01:31"]
[BlackClock "0:02:21"]

1. e4 {[%clk 0:03:00]}  c5 {[%clk 0:02:59]} 2. Nf3 {[%clk 0:03:01]}  Nf6 {[%clk 0:02:59]} 3. e5 {[%clk 0:02:54]}  Nd5 {[%clk 0:03:00]} 4. d4 {[%clk 0:02:43]}  cxd4 {[%clk 0:02:58]} 5. Qxd4 {[%clk 0:02:42]}  e6 {[%clk 0:02:58]} 6. Bd3 {[%clk 0:02:39]}  Nc6 {[%clk 0:02:59]} 7. Qg4 {[%clk 0:02:39]}  f5 {[%clk 0:02:58]} 8. exf6 {[%clk 0:02:38]}  Nxf6 {[%clk 0:02:58]} 9. Qg3 {[%clk 0:02:37]}  g6 {[%clk 0:02:38]} 10. Bxg6+ {[%clk 0:02:12]}  hxg6 {[%clk 0:02:37]} 11. Qxg6+ {[%clk 0:02:13]}  Ke7 {[%clk 0:02:34]} 12. Bg5 {[%clk 0:02:12]}  Qa5+ {[%clk 0:02:33]} 13. Nc3 {[%clk 0:02:12]}  Qf5 {[%clk 0:02:34]} 14. Qxf5 {[%clk 0:02:11]}  exf5 {[%clk 0:02:33]} 15. Nd5+ {[%clk 0:02:12]}  Ke6 {[%clk 0:02:31]} 16. Bxf6 {[%clk 0:01:56]}  Rh6 {[%clk 0:02:31]} 17. O-O-O {[%clk 0:01:39]}  Rxf6 {[%clk 0:02:29]} 18. Ng5+ {[%clk 0:01:36]}  Kd6 {[%clk 0:02:20]} 19. Nxf6+ {[%clk 0:01:35]}  Kc7 {[%clk 0:02:21]} 20. Kb1 {[%clk 0:01:31]} 1-0


[Site "https://www.chess.com"]